bitfinex-derivatives/quotes_SOLF0:USTF0_20250606
["timestamp","ask_amount","ask_price","bid_price","bid_amount"]
[1749225181188,34.8,150.81,150.76,6.6276]
[1749225181388,42.96751058,150.83,150.76,6.6276]
[1749225181582,5.40516788,150.82,150.76,6.6276]
[1749225181990,42.96751058,150.83,150.76,6.6276]
[1749225182196,0.04465492,150.81,150.77,0.04692907]
[1749225182387,8.2121655,150.81,150.77,0.04692907]
[1749225182585,6.627,150.78,150.77,0.04692907]
[1749225190793,14.79451058,150.78,150.77,0.04692907]
[1749225193895,6.627,150.78,150.77,0.04692907]
[1749225194498,6.627,150.78,150.77,10.04692907]
[1749225204100,11.21677565,150.78,150.77,10.04692907]
[1749225204805,6.627,150.78,150.77,10.04692907]
[1749225205110,6.6268,150.79,150.77,10.04692907]
[1749225206005,6.627,150.78,150.77,10.04692907]
[1749225206604,11.21612033,150.79,150.77,10.04692907]
[1749225207004,6.627,150.78,150.77,10.04692907]
[1749225207402,11.21632033,150.78,150.77,10.04692907]
[1749225208403,11.22360487,150.78,150.77,10.04692907]
[1749225208798,6.627,150.78,150.77,10.04692907]
[1749225209002,11.22597969,150.78,150.77,10.04692907]
[1749225210202,4.59897969,150.78,150.77,10.04692907]
[1749225210515,0.04465492,150.81,150.77,10.04692907]
[1749225210713,11.2366624,150.8,150.77,10.04692907]
[1749225210911,8.2121655,150.81,150.77,10.04692907]
[1749225211113,8.16751058,150.79,150.77,10.04692907]
[1749225211415,11.24744717,150.78,150.77,10.04692907]
[1749225211913,19.41495775,150.78,150.77,10.04692907]
[1749225212813,24.8708111,150.78,150.77,10.04692907]
[1749225213416,24.87873559,150.78,150.77,10.04692907]
[1749225214517,24.88309796,150.78,150.77,5.0757691]
[1749225214717,16.71558738,150.78,150.77,5.0757691]
[1749225215016,24.88309796,150.78,150.77,5.0757691]
[1749225215216,24.88261053,150.78,150.77,5.0757691]
[1749225217014,24.88274314,150.78,150.77,5.0757691]
[1749225217917,24.87215057,150.78,150.77,5.0757691]
[1749225218518,24.86975719,150.78,150.77,5.0757691]
[1749225219218,10.07524661,150.78,150.77,5.0757691]
[1749225219622,4.61939326,150.78,150.77,11.7032691]
[1749225220015,5.4589006,150.8,150.77,5.0757691]
[1749225220316,6.6262,150.8,150.78,6.6268]
[1749225220716,8.2121655,150.81,150.78,6.6268]
[1749225220922,5.45390594,150.8,150.78,6.6268]
[1749225221123,8.2121655,150.81,150.78,6.6268]
[1749225221320,5.45474392,150.8,150.78,6.6268]
[1749225221630,6.67055492,150.81,150.78,6.6268]
[1749225221824,5.45805983,150.8,150.78,6.6268]
[1749225222123,6.67055492,150.81,150.78,6.6268]
[1749225222326,12.08428043,150.8,150.78,6.6268]
[1749225222623,6.6262,150.8,150.78,16.6268]
[1749225223928,6.67045492,150.81,150.79,6.6266]
[1749225224124,5.46614457,150.8,150.79,6.6266]
[1749225226026,5.46614457,150.8,150.78,10.0]
[1749225226326,0.04465492,150.81,150.78,10.0]
[1749225226527,12.09066095,150.8,150.78,10.0]
[1749225226732,6.6264,150.8,150.78,10.0]
[1749225227019,5.46476018,150.79,150.78,10.0]
[1749225227216,6.6261,150.8,150.78,10.0]
[1749225227419,6.6261,150.8,150.78,16.627]
[1749225232136,4.55925701,150.79,150.78,16.627]
[1749225232834,6.67045492,150.81,150.79,6.6266]
[1749225233033,4.55984425,150.8,150.79,6.6266]
[1749225233638,4.56064664,150.8,150.79,6.6266]
[1749225233935,0.04465492,150.81,150.8,6.6261]
[1749225234134,12.08942246,150.84,150.78,20.33881058]
[1749225234328,5.46502246,150.83,150.78,20.33881058]
[1749225234836,6.6248,150.83,150.81,6.6255]
[1749225236138,12.0863413,150.83,150.81,6.6255]
[1749225236327,6.6248,150.83,150.81,6.6255]
[1749225238031,6.67115936,150.84,150.82,6.6253]
[1749225238536,6.6249,150.83,150.81,6.6255]
[1749225238737,6.6249,150.83,150.8,0.04287408]
[1749225239232,6.6253,150.82,150.8,0.04287408]
[1749225239434,8.16751058,150.83,150.8,0.04287408]
[1749225239632,8.16751058,150.83,150.8,10.04287408]
[1749225239842,6.6257,150.81,150.8,10.04287408]
[1749225244939,12.09307487,150.81,150.8,10.04287408]
[1749225245941,16.58230668,150.81,150.8,10.04287408]
[1749225250142,12.09307487,150.81,150.8,10.04287408]
[1749225250542,16.56432848,150.81,150.8,10.04287408]
[1749225250741,24.73183906,150.81,150.8,10.04287408]
[1749225252449,19.26446419,150.81,150.8,10.04287408]
[1749225252948,24.72131836,150.81,150.8,10.04287408]
[1749225253149,19.24438659,150.81,150.8,10.04287408]
[1749225253345,20.26058545,150.81,150.8,10.04287408]
[1749225253550,19.24443923,150.81,150.8,10.04287408]
[1749225253748,24.7118141,150.81,150.8,10.04287408]
[1749225253944,6.6274,150.78,150.72,36.9546]
[1749225254147,14.79491058,150.78,150.72,36.9546]
[1749225254353,8.16751058,150.78,150.72,36.9546]
[1749225254551,6.6275,150.77,150.74,6.6284]
[1749225254940,11.12680335,150.77,150.74,6.67871532]
[1749225255346,6.67795891,150.77,150.74,6.67871532]
[1749225255848,6.67795891,150.77,150.75,6.6282]
[1749225256050,0.05045891,150.77,150.74,0.05031532]
[1749225256555,6.67795891,150.77,150.74,10.05031532]
[1749225257153,6.67795891,150.77,150.74,16.67871532]
[1749225257550,0.05045891,150.77,150.74,10.05031532]
[1749225257749,0.05045891,150.77,150.75,6.628]
[1749225257954,4.50369687,150.77,150.74,10.05031532]
[1749225258149,0.05045891,150.77,150.74,10.05031532]
[1749225259042,6.67815891,150.77,150.75,6.6281]
[1749225260052,0.05045891,150.77,150.76,6.6279]
[1749225260247,34.7,150.81,150.75,8.16751058]
[1749225260448,8.16751058,150.83,150.75,10.38281058]
[1749225260648,6.6262,150.8,150.78,6.6268]
[1749225260953,8.16751058,150.86,150.79,8.16751058]
[1749225261154,6.6246,150.84,150.81,6.6254]
[1749225261354,12.07860777,150.84,150.81,6.66790227]
[1749225261550,6.66394424,150.84,150.81,0.04250227]
[1749225261751,12.07860777,150.84,150.81,0.04250227]
[1749225261950,6.66394424,150.84,150.81,0.04250227]
[1749225262248,12.07860777,150.84,150.81,0.04250227]
[1749225262449,6.66394424,150.84,150.81,0.04250227]
[1749225262646,5.45400777,150.84,150.82,6.6249]
[1749225262845,0.03934424,150.84,150.81,0.04250227]
[1749225263245,0.03934424,150.84,150.82,6.625]
[1749225264447,6.66374424,150.84,150.82,6.625]
[1749225266150,0.03934424,150.84,150.82,6.625]
[1749225267059,0.03934424,150.84,150.83,6.6248]
[1749225267461,0.03934424,150.84,150.81,8.21001285]
[1749225267665,0.03934424,150.84,150.83,6.6248]
[1749225269266,0.03934424,150.84,150.82,6.6251]
[1749225269466,0.03934424,150.84,150.81,8.21001285]
[1749225269664,0.03934424,150.84,150.83,10.0]
[1749225270060,6.66404424,150.84,150.83,10.0]
[1749225270658,12.07870777,150.84,150.83,10.0]
[1749225272969,16.51018872,150.84,150.83,10.0]
[1749225273569,16.51064193,150.84,150.83,10.0]
[1749225275268,11.0959784,150.84,150.83,10.0]
[1749225276172,16.51064193,150.84,150.83,10.0]
[1749225276373,11.0959784,150.84,150.83,10.0]
[1749225276573,4.47165419,150.84,150.83,10.0]
[1749225276970,0.03934424,150.84,150.83,10.0]
[1749225277374,0.03934424,150.84,150.83,16.6248]
[1749225279371,0.03934424,150.84,150.83,24.79231058]
[1749225279674,5.42795267,150.89,150.85,6.6238]
[1749225280065,6.6229,150.88,150.85,6.6238]
[1749225280474,12.05035267,150.89,150.86,6.6234]
[1749225280677,12.05035267,150.89,150.86,6.67362025]
[1749225280976,4.43903641,150.88,150.87,6.623]
[1749225281178,4.43903641,150.89,150.86,0.05022025]
[1749225281370,34.62,150.9,150.86,0.05022025]
[1749225281565,4.43752245,150.89,150.86,0.05022025]
[1749225281766,4.4346189,150.89,150.86,0.05022025]
[1749225281977,52.64707681,150.93,150.86,0.05022025]
[1749225282274,9.85956623,150.92,150.86,0.05022025]
[1749225282575,9.85956623,150.91,150.86,0.05022025]
[1749225282876,4.4346189,150.9,150.86,0.05022025]
[1749225283075,4.4346189,150.89,150.86,6.67342025]
[1749225283275,4.4346189,150.91,150.86,6.67342025]
[1749225283471,4.4346189,150.9,150.86,6.67342025]
[1749225283777,4.4346189,150.89,150.86,0.05022025]
[1749225283975,4.4346189,150.9,150.86,0.05022025]
[1749225284175,6.6226,150.88,150.86,0.05022025]
[1749225284674,6.6226,150.88,150.86,10.05022025]
[1749225285177,6.6223,150.89,150.86,16.67342025]
[1749225285469,4.43884385,150.89,150.86,10.05022025]
[1749225286573,6.6224,150.89,150.86,16.67372025]
[1749225287371,5.42494733,150.92,150.88,6.6223]
[1749225287572,4.45336706,150.91,150.87,8.16751058]
[1749225288480,6.6214,150.91,150.88,6.6223]
[1749225289072,11.07476706,150.91,150.88,6.6223]
[1749225289377,6.6214,150.91,150.88,6.6223]
[1749225289572,6.6219,150.9,150.87,14.79041058]
[1749225289978,9.87691574,150.92,150.86,10.05022025]
[1749225290172,6.6224,150.89,150.86,16.67362025]
[1749225290980,6.6219,150.9,150.87,6.623]
[1749225291384,6.6219,150.9,150.86,10.05022025]
[1749225292783,6.6219,150.9,150.88,6.6226]
[1749225293280,6.6214,150.91,150.88,6.6223]
[1749225293482,4.46027585,150.92,150.88,6.6223]
[1749225294181,6.6216,150.91,150.88,6.6223]
[1749225294682,6.6216,150.91,150.89,6.6221]
[1749225295079,6.6216,150.91,150.87,8.16751058]
[1749225295279,6.6216,150.91,150.88,6.6223]
[1749225296179,6.6216,150.91,150.89,6.6222]
[1749225296381,4.46172773,150.92,150.89,6.6222]
[1749225296780,34.62,150.93,150.89,6.6222]
[1749225297085,34.62,150.93,150.89,6.66802681]
[1749225297284,6.621,150.92,150.89,6.66802681]
[1749225297486,34.62,150.93,150.89,6.66802681]
[1749225297886,6.6211,150.92,150.89,6.66802681]
[1749225299588,6.6211,150.92,150.89,16.66802681]
[1749225300185,34.62,150.93,150.89,10.04582681]
[1749225300395,8.16751058,150.92,150.89,10.04582681]
[1749225300689,12.63743381,150.92,150.89,10.04582681]
[1749225300890,6.6215,150.91,150.89,10.04582681]
[1749225303986,6.6218,150.9,150.89,10.04582681]
[1749225304882,11.12962708,150.9,150.89,10.04582681]
[1749225305588,6.6215,150.91,150.89,10.04582681]
[1749225305792,11.13183681,150.91,150.89,10.04582681]
[1749225306096,6.6215,150.91,150.89,10.04582681]
[1749225306297,6.6218,150.9,150.89,10.04582681]
[1749225306690,42.78751058,150.93,150.89,10.04582681]
[1749225306990,4.51099805,150.92,150.89,10.04582681]
[1749225307190,34.62,150.93,150.89,10.04582681]
[1749225307392,11.12678479,150.92,150.89,16.66782681]
[1749225307598,6.6212,150.92,150.89,16.66782681]
[1749225307901,34.62,150.93,150.89,16.66782681]
[1749225308095,11.12702977,150.92,150.89,16.66782681]
[1749225308295,11.12411753,150.92,150.89,16.66782681]
[1749225308796,6.6214,150.91,150.89,16.66782681]
[1749225309097,4.50281753,150.92,150.91,6.6213]
[1749225309296,6.6193,150.96,150.91,8.16751058]
[1749225309604,4.50281753,150.95,150.93,6.6202]
[1749225310298,4.50281753,150.96,150.94,6.62]
[1749225311094,4.53414288,150.95,150.93,6.6202]
[1749225311297,11.15334288,150.96,150.93,6.6202]
[1749225312295,11.15334288,150.96,150.94,6.62]
[1749225312897,11.1537619,150.96,150.94,6.62]
[1749225313697,11.1537619,150.96,150.92,0.04409882]
[1749225313698,11.1537619,150.96,150.93,6.6202]
[1749225314399,11.16359333,150.96,150.93,6.6202]
[1749225314599,11.16359333,150.96,150.93,16.6202]
[1749225314800,6.6192,150.96,150.93,16.6202]
[1749225315498,6.6192,150.96,150.94,6.6198]
[1749225315694,4.54439333,150.97,150.93,10.0]
[1749225315897,41.1785,150.98,150.94,8.16751058]
[1749225316100,6.4462,151.02,150.96,8.16751058]
[1749225316101,41.0062,151.02,150.96,8.16751058]
[1749225316404,10.005536,151.01,150.97,0.04475204]
[1749225316596,4.54468083,151.0,150.98,6.618]
[1749225316795,4.54468083,150.99,150.98,6.618]
[1749225316996,4.54468083,151.0,150.98,6.618]
[1749225317202,4.54468083,151.0,150.98,14.78551058]
[1749225317601,16.622636,151.01,150.98,14.78551058]
[1749225317800,11.16178083,151.01,150.98,14.78551058]
[1749225318396,4.54468083,151.0,150.98,14.78551058]
[1749225318907,6.6171,151.01,150.98,14.78551058]
[1749225319106,4.55060412,151.0,150.98,14.78551058]
[1749225319306,4.55060412,151.01,150.98,14.78551058]
[1749225319504,4.55060412,151.0,150.98,14.78551058]
[1749225319704,34.56,151.02,150.98,14.78551058]
[1749225319705,4.55060412,151.01,150.98,14.78551058]
[1749225320003,4.55060412,151.0,150.98,14.78551058]
[1749225321308,6.6175,151.0,150.98,8.16751058]
[1749225321503,4.55060412,151.0,150.98,8.16751058]
[1749225321705,4.55060412,151.01,150.97,0.04475204]
[1749225321906,4.55060412,151.0,150.97,0.04475204]
[1749225322404,6.6181,150.99,150.97,0.04475204]
[1749225326019,6.6181,150.99,150.97,6.66345204]
[1749225326914,11.19943259,151.0,150.97,6.66345204]
[1749225327209,4.58089492,151.0,150.97,6.66345204]
[1749225327519,6.6179,150.99,150.97,0.04475204]
[1749225328815,11.19305743,151.0,150.97,6.66315204]
[1749225329015,8.16751058,150.99,150.97,0.04475204]
[1749225329215,12.74306801,150.99,150.97,0.04475204]
[1749225329517,11.19375743,150.98,150.97,10.04475204]
[1749225331121,6.6182,150.98,150.97,10.04475204]
[1749225331321,11.18961849,150.98,150.97,10.04475204]
[1749225331719,6.6205,150.93,150.9,36.7072]
[1749225332025,8.16751058,150.93,150.9,34.5]
[1749225332221,8.16751058,150.93,150.89,6.6218]
[1749225332424,8.16751058,150.93,150.87,34.5]
[1749225332618,8.16751058,150.91,150.87,34.5]
[1749225332814,14.78901058,150.91,150.88,0.04330238]
[1749225333624,14.78901058,150.91,150.88,6.66570238]
[1749225334324,14.78901058,150.91,150.88,16.66570238]
[1749225335027,8.16751058,150.91,150.88,16.66570238]
[1749225335918,6.66474048,150.92,150.88,16.66570238]
[1749225336313,11.22200216,150.92,150.88,16.66570238]
[1749225336620,6.66474048,150.92,150.88,16.66570238]
[1749225336824,11.22200216,150.92,150.88,16.66570238]
[1749225337526,6.66474048,150.92,150.88,16.66570238]
[1749225337727,11.17881916,150.92,150.88,16.66570238]
[1749225338230,6.6214,150.91,150.88,16.66570238]
[1749225340630,11.17871916,150.92,150.88,16.66570238]
[1749225340928,4.55771916,150.92,150.88,16.66570238]
[1749225341328,0.04364048,150.92,150.88,16.66570238]
[1749225341534,11.18338346,150.92,150.88,16.66570238]
[1749225341730,4.56218346,150.92,150.88,10.04330238]
[1749225342536,4.56218346,150.92,150.89,6.6219]
[1749225342835,4.56242526,150.92,150.88,16.66580238]
[1749225343026,4.56247903,150.92,150.88,16.66580238]
[1749225343933,6.6214,150.91,150.88,10.04330238]
[1749225344433,6.6214,150.91,150.88,16.66590238]
[1749225345228,4.55948193,150.92,150.88,10.04330238]
[1749225345628,8.16751058,150.89,150.88,10.04330238]
[1749225345834,4.51334539,150.9,150.88,10.04330238]
[1749225346028,8.16751058,150.9,150.88,10.04330238]
[1749225347329,14.78961058,150.9,150.88,10.04330238]
[1749225348235,8.16751058,150.9,150.88,10.04330238]
[1749225348429,4.50588301,150.91,150.88,10.04330238]
[1749225348736,0.04364048,150.92,150.89,6.6218]
[1749225349235,0.04364048,150.92,150.88,10.04330238]
[1749225349736,6.6214,150.91,150.88,10.04330238]
[1749225350635,14.78891058,150.91,150.88,10.04330238]
[1749225351332,12.67781777,150.91,150.88,10.04330238]
[1749225351535,12.67765666,150.91,150.88,10.04330238]
[1749225352032,19.29915666,150.91,150.88,10.04330238]
[1749225352236,12.67765666,150.91,150.88,10.04330238]
[1749225352637,19.29905666,150.91,150.88,10.04330238]
[1749225352838,4.50346737,150.9,150.88,10.04330238]
[1749225353138,19.29180476,150.91,150.88,10.04330238]
[1749225354241,4.48895054,150.9,150.88,10.04330238]
[1749225354442,8.16751058,150.91,150.88,16.66590238]
[1749225354640,12.65580928,150.91,150.88,16.66590238]
[1749225355742,19.27720928,150.91,150.88,10.04330238]
[1749225356242,14.78891058,150.91,150.88,10.04330238]
[1749225356442,19.27558124,150.91,150.88,10.04330238]
[1749225356643,6.6218,150.9,150.88,10.04330238]
[1749225357039,12.647996,150.91,150.88,10.04330238]
[1749225357239,19.269596,150.91,150.88,10.04330238]
[1749225357544,14.78911058,150.91,150.88,10.04330238]
[1749225357738,19.26812785,150.91,150.88,10.04330238]
[1749225357944,19.2679184,150.91,150.88,10.04330238]
[1749225358539,12.6463184,150.91,150.88,10.04330238]
[1749225358747,8.16751058,150.91,150.88,10.04330238]
[1749225358942,6.6222,150.89,150.88,10.04330238]
[1749225359639,6.6221,150.9,150.88,10.04330238]
[1749225359840,8.16751058,150.91,150.88,10.04330238]
[1749225360146,4.51296617,150.92,150.89,6.6221]
[1749225360342,4.51296617,150.92,150.88,10.04330238]
[1749225360640,0.04364048,150.92,150.88,10.04330238]
[1749225360847,4.51345273,150.92,150.89,6.6218]
[1749225361038,4.51345461,150.92,150.89,6.6218]
[1749225361236,4.51362214,150.92,150.89,6.6218]
[1749225362046,4.51362214,150.92,150.88,10.04330238]
[1749225362547,0.04364048,150.92,150.88,10.04330238]
[1749225362842,4.50847657,150.92,150.88,10.04330238]
[1749225363238,11.12946931,150.92,150.88,16.66590238]
[1749225364148,6.66494048,150.92,150.88,16.66590238]
[1749225364349,11.12367319,150.92,150.88,16.66590238]
[1749225364648,11.12459388,150.92,150.88,16.66590238]
[1749225365247,4.50329388,150.92,150.88,18.21081296]
[1749225365551,4.50406638,150.92,150.88,18.21081296]
[1749225365745,0.04364048,150.92,150.9,6.6214]
[1749225365945,0.04364048,150.92,150.88,18.21081296]
[1749225366448,0.04364048,150.92,150.9,6.6215]
[1749225367250,0.04364048,150.92,150.89,6.622]
[1749225368347,0.04364048,150.92,150.9,6.6218]
[1749225368551,0.04364048,150.92,150.88,10.04330238]
[1749225368848,0.04364048,150.92,150.89,6.622]
[1749225369044,4.5215272,150.92,150.88,10.04330238]
[1749225369346,4.52215763,150.92,150.88,10.04330238]
[1749225369543,0.04364048,150.92,150.88,10.04330238]
[1749225369849,4.52500284,150.92,150.89,6.622]
[1749225371049,4.52500284,150.92,150.9,6.6217]
[1749225371249,0.04364048,150.92,150.9,6.6217]
[1749225372046,0.04364048,150.92,150.88,10.04330238]
[1749225372446,0.04364048,150.92,150.88,16.66570238]
[1749225372646,6.66494048,150.92,150.88,16.66570238]
[1749225372841,4.48976327,150.91,150.88,16.66570238]
[1749225373154,5.49522948,150.92,150.88,10.04330238]
[1749225373352,9.94984988,150.91,150.88,10.04330238]
[1749225373550,4.49492203,150.9,150.88,10.04330238]
[1749225373751,5.45492785,150.91,150.88,10.04330238]
[1749225373947,4.49277532,150.9,150.88,10.04330238]
[1749225374148,5.45492785,150.91,150.88,16.66590238]
[1749225374451,4.4930569,150.9,150.88,16.66590238]
[1749225374651,4.49711308,150.89,150.88,16.66590238]
[1749225375440,0.04364048,150.92,150.91,6.6213]
[1749225375646,10.00030562,150.92,150.91,6.6213]
[1749225376045,34.46,150.96,150.91,8.16751058]
[1749225376251,5.45882018,150.95,150.91,8.16751058]
[1749225376448,5.45882018,150.94,150.91,8.16751058]
[1749225376650,6.6191,150.97,150.93,6.6202]
[1749225376850,5.45982888,150.96,150.93,6.6202]
[1749225377051,5.45982888,150.95,150.93,6.66706645]
[1749225377247,6.6192,150.96,150.93,0.04686645]
[1749225377448,5.45837112,150.95,150.93,0.04686645]
[1749225377653,12.07837112,150.94,150.93,0.04686645]
[1749225378055,20.2458817,150.94,150.93,0.04686645]
[1749225385555,21.73603085,150.94,150.88,10.0]
[1749225385761,8.16751058,150.89,150.88,10.0]
[1749225385961,13.6258817,150.89,150.88,10.0]
[1749225386560,20.2480817,150.89,150.88,10.0]
[1749225386957,22.90793824,150.89,150.88,10.0]
[1749225387658,22.90607333,150.89,150.88,10.0]
[1749225387957,22.906074,150.89,150.88,10.0]
[1749225388160,20.2480817,150.89,150.88,10.0]
[1749225388359,22.9062904,150.89,150.88,10.0]
[1749225388954,22.91171811,150.89,150.88,10.0]
[1749225389659,20.2480817,150.89,150.88,10.0]
[1749225389861,22.91029599,150.89,150.88,10.0]
[1749225390260,14.74278541,150.89,150.88,10.0]
[1749225390457,22.91029599,150.89,150.88,10.0]
[1749225390659,8.12058541,150.89,150.88,10.0]
[1749225390856,8.11991567,150.89,150.88,10.0]
[1749225391055,8.1199189,150.89,150.88,10.0]
[1749225391255,14.73344669,150.89,150.88,10.0]
[1749225392550,12.08057112,150.89,150.88,10.0]
[1749225392756,14.73096771,150.89,150.88,10.0]
[1749225393059,12.08057112,150.89,150.88,10.0]
[1749225393259,14.73100612,150.89,150.88,10.0]
[1749225393450,14.73138433,150.89,150.88,10.0]
[1749225394260,19.34450807,150.89,150.88,10.0]
[1749225395865,19.35039956,150.89,150.88,10.0]
[1749225396159,19.34718556,150.89,150.88,10.0]
[1749225396364,19.34718567,150.89,150.88,10.0]
[1749225396551,14.72811132,150.89,150.88,10.0]
[1749225396756,19.34692051,150.89,150.88,10.0]
[1749225397158,12.08057112,150.89,150.88,10.0]
[1749225397366,19.3408851,150.89,150.88,10.0]
[1749225397660,19.34084535,150.89,150.88,10.0]
[1749225397858,19.34081766,150.89,150.88,10.0]
[1749225398065,16.693413,150.89,150.88,10.0]
[1749225398264,19.34079134,150.89,150.88,10.0]
[1749225399067,19.3452388,150.89,150.88,10.0]
[1749225399259,19.34515853,150.89,150.88,10.0]
[1749225399966,6.6227,150.88,150.87,0.04186175]
[1749225400164,20.88773518,150.88,150.81,41.0855]
[1749225400364,8.16751058,150.85,150.81,41.0855]
[1749225400566,8.16751058,150.85,150.78,8.16751058]
[1749225400567,2.64571264,150.84,150.78,42.56751058]
[1749225400764,2.64571264,150.83,150.78,34.4]
[1749225401065,2.6456307,150.82,150.78,34.4]
[1749225401254,2.6456307,150.81,150.8,6.6259]
[1749225401955,0.04915121,150.82,150.81,6.6258]
[1749225402157,2.69878585,150.82,150.81,6.6258]
[1749225402562,2.69813904,150.82,150.8,10.0]
[1749225402868,2.64887706,150.81,150.8,10.0]
[1749225403762,2.64887706,150.81,150.8,16.626]
[1749225404167,0.04915121,150.82,150.8,16.626]
[1749225404365,2.64842952,150.81,150.8,16.626]
[1749225404560,0.04915121,150.82,150.8,16.626]
[1749225404765,2.64826305,150.81,150.8,16.626]
[1749225405161,7.25290589,150.81,150.78,0.04564149]
[1749225405363,8.17652177,150.79,150.78,0.04564149]
[1749225405566,10.82502303,150.79,150.78,0.04564149]
[1749225405867,22.0350705,150.79,150.78,0.04564149]
[1749225406956,22.0350705,150.79,150.78,10.04564149]
[1749225407156,14.80326932,150.79,150.78,10.04564149]
[1749225407365,22.01735048,150.79,150.78,10.04564149]
[1749225407561,14.80326932,150.79,150.78,10.04564149]
[1749225407771,17.43253018,150.79,150.78,10.04564149]
[1749225407966,17.43245483,150.79,150.78,10.04564149]
[1749225408166,22.01580398,150.79,150.78,10.04564149]
[1749225408863,17.42666796,150.79,150.78,10.04564149]
[1749225409263,21.99512426,150.79,150.78,10.04564149]
[1749225409459,17.42667104,150.79,150.78,10.04564149]
[1749225410474,6.6277,150.77,150.73,8.9438]
[1749225410664,8.17656932,150.75,150.73,2.3146]
[1749225411765,8.17656932,150.75,150.72,0.0507252]
[1749225412367,8.17656932,150.75,150.73,6.629]
[1749225412770,8.17656932,150.75,150.72,10.0507252]
[1749225413671,8.17656932,150.75,150.74,6.6289]
[1749225414569,8.17656932,150.75,150.72,10.0507252]
[1749225415072,8.17656932,150.75,150.73,6.6289]
[1749225415269,0.04873509,150.76,150.72,10.0507252]
[1749225416070,8.22530441,150.76,150.72,10.0507252]
[1749225416273,8.22530441,150.76,150.73,6.6291]
[1749225416473,14.85330441,150.76,150.73,6.6291]
[1749225418172,0.04873509,150.76,150.73,6.6291]
[1749225418569,0.04873509,150.76,150.74,6.6287]
[1749225419878,0.04873509,150.76,150.75,6.6284]
[1749225420971,8.17656932,150.78,150.74,8.17656932]
[1749225420972,2.77859901,150.78,150.74,8.17656932]
[1749225421167,381.76,150.83,150.74,8.17656932]
[1749225421168,34.44,150.81,150.79,6.6263]
[1749225421372,2.77879932,150.8,150.79,6.6263]
[1749225421973,2.78121164,150.8,150.79,6.6263]
[1749225422678,34.4823729,150.81,150.78,6.67287101]
[1749225423177,2.77892023,150.8,150.78,6.67287101]
[1749225423380,34.4823729,150.81,150.78,6.67287101]
[1749225423578,2.77868596,150.8,150.78,6.67287101]
[1749225423780,34.4823729,150.81,150.78,6.67287101]
[1749225424077,2.77855817,150.8,150.78,6.67287101]
[1749225424382,2.77957945,150.79,150.78,6.67287101]
[1749225424681,34.4823729,150.81,150.79,6.6272]
[1749225424876,2.77906449,150.8,150.79,6.6272]
[1749225425177,2.77906449,150.8,150.78,0.04547101]
[1749225425478,2.77906449,150.79,150.78,0.04547101]
[1749225425876,2.79367495,150.79,150.78,0.04547101]
[1749225426080,14.80366932,150.8,150.78,0.04547101]
[1749225426380,19.60903763,150.8,150.78,0.04547101]
[1749225426579,2.79411087,150.79,150.78,0.04547101]
[1749225426773,7.59947918,150.79,150.78,0.04547101]
[1749225426970,22.4032485,150.79,150.78,0.04547101]
[1749225427378,22.40534785,150.79,150.78,0.04547101]
[1749225427577,17.59788019,150.79,150.78,0.04547101]
[1749225427774,15.80016414,150.79,150.72,10.0]
[1749225427976,8.17656932,150.76,150.72,10.0]
[1749225428172,2.79581049,150.75,150.72,16.63]
[1749225428377,2.79586109,150.74,150.72,10.0]
[1749225428578,2.79586109,150.73,150.72,10.0]
[1749225429075,2.7976576,150.73,150.72,10.0]
[1749225429477,7.63062942,150.73,150.72,10.0]
[1749225429677,45.84300647,150.73,150.72,10.0]
[1749225429882,48.64035426,150.73,150.72,10.0]
[1749225430083,48.63915816,150.73,150.72,10.0]
[1749225430681,48.6177141,150.73,150.72,10.0]
[1749225430988,41.0099,150.73,150.72,10.0]
[1749225431276,48.61849228,150.73,150.72,10.0]
[1749225431483,45.84153437,150.73,150.72,10.0]
[1749225431679,48.62448153,150.73,150.72,10.0]
[1749225432181,41.99458153,150.73,150.67,6.6322]
[1749225432490,8.17656932,150.71,150.66,2.211]
[1749225432785,7.61035457,150.7,150.66,2.211]
[1749225432985,2.78063427,150.69,150.67,6.6322]
[1749225433191,13.00628962,150.71,150.67,6.6322]
[1749225433385,2.82611217,150.7,150.67,6.6322]
[1749225433583,2.77769312,150.69,150.68,6.6321]
[1749225434087,0.04841905,150.7,150.68,16.6318]
[1749225434284,2.7772918,150.69,150.68,10.0]
[1749225434585,2.77746829,150.69,150.68,10.0]
[1749225434785,2.77782881,150.69,150.68,10.0]
[1749225434987,2.77782881,150.69,150.68,16.6321]
[1749225435379,2.7789107,150.69,150.68,16.6321]
[1749225435978,2.76519456,150.69,150.68,16.6321]